[Event "5th Ordu Open 2019"]
[Site "Ordu"]
[Date "2019.04.30"]
[Round "2.3"]
[White "Eren, Ataberk"]
[Black "Mgeladze, Tamaz"]
[Result "1/2-1/2"]
[ECO "E73"]
[WhiteElo "2256"]
[BlackElo "2396"]
[Annotator "NA"]
[PlyCount "180"]
[EventDate "2019.04.29"]
[EventType "swiss"]
[EventCountry "TUR"]
[SourceTitle "playchess.com"]
[Source "ChessBase"]
[SourceQuality "1"]
[TimeControl "5400+30"]

1. d4 {[%emt 0:08:30]} Nf6 {[%emt 0:00:30]} 2. c4 {[%emt 0:02:30]} g6 {[%emt 0:00:30]} 3. Nc3 {[%emt 0:00:30]} Bg7 {[%emt 0:00:30]} 4. e4 {[%emt 0:00:30]} d6 {[%emt 0:00:00]} 5. Be2 {[%emt 0:00:00]} O-O {[%emt 0:00:00]} 6. Bg5 {[%emt 0:00:00]} Na6 {[%emt 0:00:30]} 7. Qd2 {[%emt 0:00:00]} Qe8 {[%emt 0:00:30]} 8. f3 {[%emt 0:00:00]} e5 {[%emt 0:00:30]} 9. d5 {[%emt 0:00:00]} Nh5 {[%emt 0:00:00]} 10. Bd1 {[%emt 0:01:00]} f5 {[%emt 0:01:00] E73: King's Indian: Averbakh Variation without 6...c5} 11. Nge2 {[%emt 0:02:30]} f4 {[%emt 0:00:30]} 12. Bh4 {[%emt 0:00:30]} g5 {[%emt 0:00:00]} 13. Bf2 {[%emt 0:01:30]} ({Don't go for} 13. Bxg5 $2 Qg6 $17) 13... g4 {[%emt 0:00:00]} 14. Ba4 $146 {[%emt 0:00:30]} ({Predecessor:} 14. Nc1 Nf6 15. Nd3 c6 16. Be2 Nc7 17. dxc6 bxc6 18. O-O-O {½-½ (29) Lakatos,S (2394)-Falatowicz,P (2386) ICCF email 2016}) 14... Qg6 {[%emt 0:01:30]} 15. O-O-O {[%emt 0:06:30]} (15. Rg1 $1 $11) 15... gxf3 {[%emt 0:02:30]} 16. gxf3 {[%emt 0:00:30]} Qg2 $1 {[%emt 0:00:30] Double Attack} 17. Rhf1 {[%emt 0:35:30]} Qxf3 {[%emt 0:05:30]} 18. Bh4 {[%emt 0:09:30]} (18. Ng1 $15 Qg2 19. Bh4 Qxd2+ 20. Rxd2) 18... Qh3 {[%emt 0:06:30]} 19. Be7 {[%emt 0:03:30]} Rf7 {[%emt 0:03:30]} 20. Ng1 {[%emt 0:02:30]} Qe3 {[%emt 0:08:30]} (20... Qg4 $19 {is more deadly.} 21. h3 Qg6) 21. Qxe3 {[%emt 0:00:30]} fxe3 {[%emt 0:00:00]} 22. Rxf7 {[%emt 0:01:30]} Kxf7 {[%emt 0:00:00]} 23. Bg5 {[%emt 0:00:30]} Nf4 {[%emt 0:06:30]} 24. Nce2 {[%emt 0:16:59]} (24. Rf1 $15) 24... Nxe2+ {[%emt 0:08:30]} 25. Nxe2 {[%emt 0:00:30]} Bg4 {[%emt 0:00:00]} 26. Re1 {[%emt 0:01:39]} Nb4 {[%emt 0:00:00]} 27. Bc2 {[%emt 0:00:31]} Nxa2+ {[%emt 0:00:30]} 28. Kd1 {[%emt 0:01:24]} Nb4 {[%emt 0:03:30]} 29. Bb1 {[%emt 0:00:05]} Rg8 {[%emt 0:03:30]} 30. Bxe3 {[%emt 0:01:01]} Bf6 {[%emt 0:00:30]} 31. Rf1 {[%emt 0:03:57]} Ke7 {[%emt 0:00:30]} 32. Rg1 {[%emt 0:00:34]} Rg6 {[%emt 0:02:30]} 33. Kd2 {[%emt 0:00:04]} Bd7 {[%emt 0:04:30]} 34. Bxa7 {[%emt 0:01:07]} b6 {[%emt 0:00:00]} 35. Rxg6 {[%emt 0:00:30]} hxg6 {[%emt 0:00:00]} 36. Kc3 {[%emt 0:00:30]} Na6 {[%emt 0:00:30]} 37. b4 {[%emt 0:00:00]} Kd8 {[%emt 0:01:30]} 38. Bd3 {[%emt 0:00:00]} Kc8 {[%emt 0:02:30]} 39. c5 {[%emt 0:00:00]} Nxb4 {[%emt 0:00:30]} 40. c6 $1 {[%emt 0:01:59]} ({Much weaker is} 40. Kxb4 dxc5+ 41. Kb3 Kb7 $17) 40... Nxc6 {[%emt 0:03:30]} 41. Ba6+ {[%emt 0:00:30]} Kd8 {[%emt 0:00:30]} 42. dxc6 {[%emt 0:00:30]} Bxc6 {[%emt 0:00:00]} 43. Kd3 {[%emt 0:00:00]} d5 {[%emt 0:04:00]} 44. Nc3 {[%emt 0:00:18]} dxe4+ {[%emt 0:01:30]} 45. Nxe4 {[%emt 0:00:30]} Be7 {[%emt 0:00:30]} 46. Nd2 {[%emt 0:01:13]} Kd7 {[%emt 0:00:30]} 47. Nc4 {[%emt 0:00:17]} e4+ {[%emt 0:01:30]} 48. Ke2 {[%emt 0:00:49]} Bf6 {[%emt 0:01:30]} 49. Ke3 {[%emt 0:00:20]} Ke6 {[%emt 0:01:30]} 50. Bb8 {[%emt 0:01:03]} Bg5+ {[%emt 0:01:30]} 51. Kd4 {[%emt 0:00:00]} Bf6+ {[%emt 0:03:30]} 52. Ke3 {[%emt 0:00:24]} Kd7 {[%emt 0:00:00]} 53. Ba7 {[%emt 0:00:00]} Ke6 {[%emt 0:02:00]} 54. Bb8 {[%emt 0:00:02]} Bd8 {[%emt 0:01:30]} 55. Bc8+ {[%emt 0:01:45]} Kd5 {[%emt 0:00:00]} 56. Ba6 {[%emt 0:00:20]} Bd7 {[%emt 0:03:00]} 57. Ke2 {[%emt 0:01:06]} Bg4+ {[%emt 0:00:30]} 58. Kf2 {[%emt 0:00:00]} Kd4 {[%emt 0:00:30]} 59. Na3 {[%emt 0:00:29]} Bh4+ {[%emt 0:03:58]} 60. Kf1 {[%emt 0:00:01]} c6 {[%emt 0:02:30]} 61. Nc2+ {[%emt 0:00:46]} Kc5 {[%emt 0:01:47]} 62. Be2 {[%emt 0:00:42]} Bh3+ {[%emt 0:01:00]} 63. Kg1 {[%emt 0:00:01]} b5 {[%emt 0:02:33]} 64. Ba7+ {[%emt 0:00:30]} Kd6 {[%emt 0:00:04]} 65. Be3 {[%emt 0:00:12]} Bd7 {[%emt 0:00:53]} 66. Bf2 {[%emt 0:01:43]} Bf6 {[%emt 0:00:47]} 67. Bg3+ {[%emt 0:00:03]} Kd5 {[%emt 0:00:16]} 68. Kf2 {[%emt 0:00:35]} c5 {[%emt 0:00:16]} 69. Ke1 {[%emt 0:00:18]} c4 {[%emt 0:04:01]} 70. Bf2 {[%emt 0:00:32]} Be6 {[%emt 0:01:26]} 71. Kd2 {[%emt 0:00:36]} Bb2 {[%emt 0:03:51]} 72. Ne3+ {[%emt 0:00:20]} Kd6 {[%emt 0:00:31]} 73. Kc2 {[%emt 0:00:12]} (73. h4 $11) 73... Bf6 {[%emt 0:00:40]} 74. Nf1 {[%emt 0:00:50]} b4 {[%emt 0:00:15]} 75. Nd2 {[%emt 0:00:09]} b3+ {[%emt 0:00:50]} 76. Kc1 $2 {[%emt 0:00:58]} (76. Kd1 $17 b2 77. Bxc4 (77. Kc2 $2 e3 $19 {[%mdl 64] Double Attack}) 77... b1=Q+ {[%mdl 64] Deflection} 78. Nxb1 Bxc4 79. Na3) 76... Bg5 {[%emt 0:01:01]} 77. Kd1 {[%emt 0:00:27]} b2 $2 {[%emt 0:03:20]} (77... Bxd2 $1 $19 78. Kxd2 b2) 78. Nxe4+ {[%emt 0:00:36] Double Attack} Kc6 {[%emt 0:00:01]} 79. Kc2 {[%emt 0:00:50]} Bf5 {[%emt 0:00:30]} 80. Kxb2 {[%emt 0:00:07]} Bxe4 {[%emt 0:00:00]} 81. Bxc4 {[%emt 0:00:00]} Bf4 {[%emt 0:00:00]} 82. h4 {[%emt 0:01:05]} Bd2 {[%emt 0:00:29]} 83. Bf7 {[%emt 0:00:00]} Kd6 {[%emt 0:00:00]} 84. h5 {[%emt 0:01:13]} g5 {[%emt 0:00:19]} 85. Bg6 $11 {[%emt 0:00:00]} Bxg6 {[%emt 0:00:30]} 86. hxg6 {[%emt 0:00:30]} Ke6 {[%emt 0:00:30]} 87. Bd4 {[%emt 0:00:00]} g4 {[%emt 0:00:19]} 88. Kc2 {[%emt 0:00:04]} Bh6 {[%emt 0:00:30]} 89. Kd3 {[%emt 0:00:30]} Kf5 {[%emt 0:00:30]} 90. g7 {[%emt 0:00:00]} Bxg7 {[%emt 0:00:00]} 1/2-1/2

[Event "5th Ordu Open 2019"]
[Site "Ordu"]
[Date "2019.04.30"]
[Round "2.4"]
[White "Odeev, Handszar"]
[Black "Akhvlediani, Irakli"]
[Result "1/2-1/2"]
[ECO "A36"]
[WhiteElo "2394"]
[BlackElo "2261"]
[Annotator "NA"]
[PlyCount "68"]
[EventDate "2019.04.29"]
[EventType "swiss"]
[EventCountry "TUR"]
[SourceTitle "playchess.com"]
[Source "ChessBase"]
[SourceQuality "1"]
[TimeControl "5400+30"]

1. c4 {[%emt 0:01:30]} g6 {[%emt 0:00:30]} 2. g3 {[%emt 0:00:30]} Bg7 {[%emt 0:00:30]} 3. Bg2 {[%emt 0:00:30]} Nf6 {[%emt 0:00:00]} 4. Nc3 {[%emt 0:05:30]} O-O {[%emt 0:00:00]} 5. d3 {[%emt 0:00:30]} d6 {[%emt 0:00:00]} 6. e4 {[%emt 0:02:30]} c5 {[%emt 0:04:00]} 7. Nge2 {[%emt 0:00:30]} Nc6 {[%emt 0:00:00]} 8. O-O {[%emt 0:00:30]} e5 {[%emt 0:09:00]} 9. h3 {[%emt 0:06:30]} Nd4 {[%emt 0:05:30]} 10. Nxd4 {[%emt 0:15:30]} ({Better is} 10. Rb1 $14) 10... cxd4 {[%emt 0:00:30] A36: Symmetrical English vs ...g6: 4 Bg2 Bg7} 11. Ne2 {[%emt 0:00:30]} Nd7 {[%emt 0:02:30]} 12. f4 {[%emt 0:04:30]} f5 {[%emt 0:03:30]} (12... a5 $15) 13. b4 $146 {[%emt 0:15:30]} ({Predecessor:} 13. exf5 $11 Rxf5 (13... gxf5 14. b4 a5 15. Bd2 axb4 16. Bd5+ Kh8 17. fxe5 Bxe5 18. Bh6 Re8 {0-1 (36) Lozano Ramirez,N (2051)-De Arco,L (2248) Bogota 2012}) 14. Bd2) 13... fxe4 {[%emt 0:06:30]} 14. Bxe4 {[%emt 0:01:30]} a5 $1 {[%emt 0:01:30]} 15. Ba3 {[%emt 0:07:30]} axb4 {[%emt 0:05:30]} 16. Bxb4 {[%emt 0:00:00]} Nc5 {[%emt 0:00:30]} 17. Bg2 {[%emt 0:05:00]} Bf5 {[%emt 0:08:30]} 18. Bxc5 {[%emt 0:07:30]} dxc5 {[%emt 0:00:30]} 19. g4 {[%emt 0:00:30]} Be6 {[%emt 0:01:30]} 20. Qb3 {[%emt 0:12:54]} ({Better is} 20. Bxb7 $15 Rb8 21. Bg2) 20... Rb8 {[%emt 0:04:30]} 21. Qb5 {[%emt 0:05:21]} Qc7 {[%emt 0:02:30]} 22. Rab1 {[%emt 0:00:23]} exf4 {[%emt 0:07:30]} 23. Qb6 {[%emt 0:00:15]} Qe5 {[%emt 0:01:30]} 24. Nxf4 {[%emt 0:00:31]} Bxg4 {[%emt 0:04:30]} 25. Rbe1 {[%emt 0:02:42]} Qg5 {[%emt 0:00:30]} 26. Qd6 {[%emt 0:03:47]} Rbd8 {[%emt 0:07:30]} 27. Qe7 {[%emt 0:00:18]} Bf6 {[%emt 0:03:30]} 28. Qxb7 {[%emt 0:00:30]} Be5 $14 {[%emt 0:06:38]} (28... Bc8 $11 29. Qb6 Be5) 29. h4 {[%emt 0:00:01]} Qf6 {[%emt 0:01:39]} 30. Nd5 {[%emt 0:01:15]} Qxh4 {[%emt 0:03:52]} 31. Rxf8+ {[%emt 0:00:30]} Rxf8 {[%emt 0:00:00]} 32. Rxe5 {[%emt 0:00:41]} Qf2+ {[%emt 0:00:00]} 33. Kh1 {[%emt 0:00:39]} Qh4+ {[%emt 0:00:20]} 34. Kg1 {[%emt 0:00:00]} Qf2+ {[%emt 0:00:17]} 1/2-1/2

[Event "5th Ordu Open 2019"]
[Site "Ordu"]
[Date "2019.04.30"]
[Round "2.5"]
[White "Isik, Alparslan"]
[Black "Pacher, Milan"]
[Result "0-1"]
[ECO "D02"]
[WhiteElo "2233"]
[BlackElo "2391"]
[Annotator "NA"]
[PlyCount "74"]
[EventDate "2019.04.29"]
[EventType "swiss"]
[EventCountry "TUR"]
[SourceTitle "playchess.com"]
[Source "ChessBase"]
[SourceQuality "1"]
[TimeControl "5400+30"]

1. d4 {[%emt 0:11:30]} Nf6 {[%emt 0:00:30]} 2. Bf4 {[%emt 0:00:30]} d5 {[%emt 0:00:00]} 3. e3 {[%emt 0:00:00]} c5 {[%emt 0:00:00]} 4. c3 {[%emt 0:00:00]} Nc6 {[%emt 0:00:00]} 5. Nd2 {[%emt 0:00:30]} e6 {[%emt 0:00:00]} 6. Ngf3 {[%emt 0:00:00]} cxd4 {[%emt 0:00:30]} 7. exd4 {[%emt 0:00:00] D02: 1 d4 d5 2 Nf3 sidelines, including 2...Nf6 3 g3 and 2...Nf6 3 Bf4} Nh5 {[%emt 0:00:30]} 8. Be3 {[%emt 0:00:00]} (8. Bg5 f6 9. Be3 Bd6 10. g3 O-O 11. Nh4 g6 12. Be2 Ng7 13. O-O e5 14. dxe5 fxe5 {½-½ (59) Aronian,L (2767)-Nakamura,H (2777) chess.com INT 2018}) 8... Bd6 {[%emt 0:00:30]} 9. Ne5 {[%emt 0:01:00]} g6 {[%emt 0:02:30]} 10. Nd3 {[%emt 0:07:30]} O-O {[%emt 0:01:30]} 11. Be2 {[%emt 0:03:30]} Ng7 {[%emt 0:00:30]} 12. Bf4 $146 {[%emt 0:03:30]} ({Predecessor:} 12. O-O Qc7 13. g3 Nf5 14. Bf4 b6 {½-½ (55) Nguyen,N (2629)-Ganguly,S (2668) Doha 2016}) 12... f6 {[%emt 0:01:30]} 13. Bxd6 {[%emt 0:08:30]} Qxd6 {[%emt 0:00:00]} 14. f4 {[%emt 0:01:30]} Nf5 {[%emt 0:04:00]} 15. Qc1 {[%emt 0:06:30]} Ne3 {[%emt 0:07:30]} 16. Kf2 {[%emt 0:04:30]} Nc4 {[%emt 0:05:30]} 17. Bf3 {[%emt 0:17:30]} b5 {[%emt 0:06:30]} 18. Re1 {[%emt 0:03:30]} Rb8 {[%emt 0:02:30]} 19. b4 {[%emt 0:01:30]} a5 {[%emt 0:01:30]} 20. a3 {[%emt 0:00:30]} Ra8 {[%emt 0:00:30]} 21. Re2 {[%emt 0:14:55]} g5 {[%emt 0:07:30]} 22. Nb3 {[%emt 0:02:40]} axb4 {[%emt 0:02:30]} 23. axb4 {[%emt 0:01:29]} Rxa1 {[%emt 0:00:00]} 24. Nxa1 {[%emt 0:00:13]} gxf4 {[%emt 0:04:00]} 25. Nxf4 $11 {[%emt 0:00:17]} Ne7 {[%emt 0:00:30]} 26. Kg1 {[%emt 0:09:40]} e5 {[%emt 0:00:30]} 27. Qe1 {[%emt 0:00:40]} e4 {[%emt 0:02:30]} 28. Qg3+ {[%emt 0:00:30]} Kh8 {[%emt 0:00:00]} 29. Bh5 {[%emt 0:00:56]} Nf5 {[%emt 0:02:00]} 30. Qf2 {[%emt 0:00:42]} e3 {[%emt 0:00:30]} 31. Qf3 {[%emt 0:00:48]} Nd2 {[%emt 0:01:30]} 32. Qg4 {[%emt 0:00:25]} Rg8 {[%emt 0:02:30]} 33. Ng6+ {[%emt 0:00:44]} hxg6 {[%emt 0:00:30]} 34. Bxg6 {[%emt 0:00:00]} Nh6 {[%emt 0:00:30]} 35. Qh5 {[%emt 0:01:05]} Qf4 {[%emt 0:00:30]} 36. h3 {[%emt 0:00:00]} Nf1 {[%emt 0:01:30]} 37. Ra2 {[%emt 0:00:52]} Ng3 {[%emt 0:01:30]} 0-1

[Event "5th Ordu Open 2019"]
[Site "Ordu"]
[Date "2019.04.30"]
[Round "2.6"]
[White "Kamer, Kayra"]
[Black "Asgari, Morteza"]
[Result "0-1"]
[ECO "B59"]
[WhiteElo "2379"]
[BlackElo "2248"]
[Annotator "NA"]
[PlyCount "102"]
[EventDate "2019.04.29"]
[EventType "swiss"]
[EventCountry "TUR"]
[SourceTitle "playchess.com"]
[Source "ChessBase"]
[SourceQuality "1"]
[TimeControl "5400+30"]

1. e4 {[%emt 0:12:30]} c5 {[%emt 0:00:30]} 2. Nf3 {[%emt 0:00:00]} d6 {[%emt 0:00:30]} 3. d4 {[%emt 0:00:00]} cxd4 {[%emt 0:00:30]} 4. Nxd4 {[%emt 0:00:30]} Nf6 {[%emt 0:00:30]} 5. Nc3 {[%emt 0:00:00]} Nc6 {[%emt 0:00:00]} 6. Be2 {[%emt 0:03:00]} e5 {[%emt 0:00:00]} 7. Nb3 {[%emt 0:01:30]} Be7 {[%emt 0:00:00]} 8. Be3 {[%emt 0:00:00]} Be6 {[%emt 0:00:00]} 9. Bf3 {[%emt 0:01:00] B59: Classical Sicilian: 6 Be2 e5 7 Nb3} (9. Qd2 O-O 10. O-O a5 11. Rad1 a4 12. Nc1 a3 13. b3 Rc8 14. Bf3 Nb4 15. Nd5 Bxd5 16. Qxb4 Bc6 17. Ne2 Qe8 18. Ng3 d5 19. Qa5 {½-½ (61) Katz,A (2433)-Le,Q (2714) Burlingame 2019}) 9... O-O {[%emt 0:05:30]} 10. g4 {[%emt 0:00:30]} (10. O-O $11) 10... a5 {[%emt 0:00:00]} 11. g5 {[%emt 0:00:30]} Nd7 {[%emt 0:00:00]} 12. h4 {[%emt 0:08:30]} a4 {[%emt 0:01:30]} 13. Nc1 {[%emt 0:01:30]} a3 $146 {[%emt 0:08:30]} ({Predecessor:} 13... f5 14. exf5 Bxf5 15. Nd5 e4 16. Nxe7+ Qxe7 17. Qd5+ {0-1 (30) Larsplass,E (1663)-Johansen,A (1621) Oslo 2008}) 14. b3 {[%emt 0:00:00]} Nd4 {[%emt 0:04:30]} 15. Bxd4 {[%emt 0:01:00]} ({White should try} 15. Bg2 $1 $11) 15... exd4 {[%emt 0:00:30]} 16. Qxd4 {[%emt 0:01:30]} Ne5 {[%emt 0:01:30]} ({Black should try} 16... f6 $17 17. g6 hxg6) 17. Be2 {[%emt 0:02:30]} ({Better is} 17. Bg2 $1 $11) 17... Qc7 {[%emt 0:14:30]} 18. f4 {[%emt 0:01:30]} (18. Qe3 $15) 18... Rfc8 {[%emt 0:00:30]} 19. Nd1 {[%emt 0:06:30]} (19. f5 $15) 19... Nc6 {[%emt 0:04:30]} (19... Qxc2 $19 20. fxe5 dxe5) 20. Qd2 {[%emt 0:01:30] [#]} d5 $1 {[%emt 0:00:30]} 21. exd5 {[%emt 0:11:30]} Bxd5 {[%emt 0:00:30]} 22. O-O {[%emt 0:00:30]} ({Avoid the trap} 22. Qxd5 $2 Nb4 $19) 22... Nd4 {[%emt 0:10:30]} 23. c4 $2 {[%emt 0:02:30]} ({Don't go for} 23. Qxd4 $2 Bc5 $19) (23. c3 $17 {was necessary.} Qd7 24. Ne3) 23... Be4 {[%emt 0:06:30]} 24. Nf2 {[%emt 0:03:30]} ({Don't blunder} 24. Qxd4 $2 Bc5 $19) 24... Rd8 {[%emt 0:03:30]} 25. Nxe4 {[%emt 0:00:30]} Nf3+ $1 {[%emt 0:00:30] Discovered Attack} 26. Bxf3 {[%emt 0:11:30]} Rxd2 {[%emt 0:00:30]} 27. Nxd2 {[%emt 0:00:30]} Qb6+ {[%emt 0:10:30]} 28. Rf2 {[%emt 0:05:30]} Bc5 {[%emt 0:04:30]} 29. Nd3 {[%emt 0:01:30]} Bxf2+ {[%emt 0:00:30]} 30. Nxf2 {[%emt 0:00:00]} Qd4 {[%emt 0:00:30]} 31. Rd1 {[%emt 0:00:00]} Qb2 {[%emt 0:01:30]} 32. Bxb7 {[%emt 0:00:30]} Rd8 {[%emt 0:01:30]} 33. Bd5 {[%emt 0:04:30]} Qxa2 {[%emt 0:00:30]} 34. Nb1 {[%emt 0:01:15]} Kf8 {[%emt 0:02:03]} 35. b4 {[%emt 0:14:17]} Qb3 $19 {[%emt 0:03:27]} 36. Nxa3 {[%emt 0:01:00]} Qxa3 {[%emt 0:00:30]} 37. b5 {[%emt 0:00:00]} Qg3+ {[%emt 0:03:14]} 38. Kf1 {[%emt 0:00:09]} Qxh4 {[%emt 0:00:00]} 39. b6 {[%emt 0:02:05]} Qxf4 {[%emt 0:00:27]} 40. b7 {[%emt 0:00:00]} Qxg5 {[%emt 0:04:17]} 41. c5 {[%emt 0:00:00]} Qf4 {[%emt 0:00:49]} 42. c6 {[%emt 0:00:10]} Ke7 {[%emt 0:03:57]} 43. Kg2 {[%emt 0:04:10]} Kd6 {[%emt 0:01:13]} 44. Ne4+ {[%emt 0:01:30]} Kc7 {[%emt 0:01:28]} 45. Nc5 {[%emt 0:00:02]} Qg4+ {[%emt 0:02:06]} 46. Kf2 {[%emt 0:01:15]} Qxd1 {[%emt 0:00:30]} 47. Na6+ {[%emt 0:00:00]} Kb6 {[%emt 0:00:25]} 48. c7 {[%emt 0:00:26]} Qc2+ {[%emt 0:00:03]} 49. Ke3 {[%emt 0:00:33]} Qxc7 {[%emt 0:00:36]} 50. Nxc7 {[%emt 0:00:30]} Kxc7 {[%emt 0:00:10]} 51. Bf3 {[%emt 0:00:10]} Rb8 {[%emt 0:00:17]} 0-1

[Event "5th Ordu Open 2019"]
[Site "Ordu"]
[Date "2019.04.30"]
[Round "2.7"]
[White "Gunduz, Umut Erdem"]
[Black "Tanriverdi, Enes"]
[Result "0-1"]
[ECO "B96"]
[WhiteElo "2216"]
[BlackElo "2348"]
[Annotator "NA"]
[PlyCount "100"]
[EventDate "2019.04.29"]
[EventType "swiss"]
[EventCountry "TUR"]
[SourceTitle "playchess.com"]
[Source "ChessBase"]
[SourceQuality "1"]
[TimeControl "5400+30"]

1. e4 {[%emt 0:12:30]} c5 {[%emt 0:00:30]} 2. Nf3 {[%emt 0:00:00]} d6 {[%emt 0:00:00]} 3. d4 {[%emt 0:06:00]} cxd4 {[%emt 0:00:00]} 4. Nxd4 {[%emt 0:00:30]} Nf6 {[%emt 0:00:30]} 5. Nc3 {[%emt 0:00:30]} a6 {[%emt 0:00:00]} 6. Bg5 {[%emt 0:01:30]} e6 {[%emt 0:05:00]} 7. f4 {[%emt 0:01:30]} h6 {[%emt 0:00:30]} 8. Bh4 {[%emt 0:09:30]} Qb6 {[%emt 0:00:00]} 9. Qd3 {[%emt 0:01:30] B96: Sicilian Najdorf: 6 Bg5 e6 7 f4, lines other than 7...Qb6 and 7...Be7} (9. a3 Be7 10. Bf2 Qc7 11. Qf3 Nbd7 12. O-O-O b5 13. g4 Bb7 14. h4 Nc5 15. Bd3 h5 16. g5 Ng4 17. Rhg1 {½-½ (25) Grischuk,A (2766)-Vachier Lagrave,M (2779) Saint Louis 2018}) 9... Nbd7 {[%emt 0:09:00]} 10. O-O-O {[%emt 0:02:30]} Be7 {[%emt 0:00:30]} 11. f5 {[%emt 0:07:30]} e5 {[%emt 0:02:30]} 12. Nb3 {[%emt 0:01:30]} Qc7 {[%emt 0:17:30]} 13. Be2 {[%emt 0:10:30]} b5 {[%emt 0:00:30]} 14. a3 {[%emt 0:03:30]} Bb7 {[%emt 0:00:30]} 15. Bf3 $146 {[%emt 0:08:30]} ({Predecessor:} 15. g4 Rc8 16. Kb1 Nxe4 17. Nxe4 Bxe4 18. Qxe4 Bxh4 {0-1 (30) Zwirs,N (2324)-Guliyev,N (2549) Hilversum 2015}) 15... Bc6 {[%emt 0:01:30]} 16. Kb1 {[%emt 0:09:30]} (16. g4 $11) 16... Rb8 {[%emt 0:00:30]} (16... O-O $15) 17. Be1 {[%emt 0:02:49]} Nb6 {[%emt 0:02:30]} (17... b4 $17 18. axb4 Rxb4) 18. Na5 {[%emt 0:02:28]} Bd7 {[%emt 0:07:30]} 19. Bh4 {[%emt 0:12:15]} Na4 {[%emt 0:01:30]} 20. Nxa4 {[%emt 0:01:53]} bxa4 {[%emt 0:03:30]} 21. Nc4 {[%emt 0:01:55]} O-O {[%emt 0:00:30]} 22. Bxf6 {[%emt 0:01:37]} Bxf6 {[%emt 0:00:30]} 23. Nxd6 {[%emt 0:00:46]} Rb6 {[%emt 0:01:30]} 24. Rd2 {[%emt 0:01:15]} Bg5 {[%emt 0:00:30]} 25. Nc4 {[%emt 0:00:00]} Bb5 {[%emt 0:01:30]} 26. Nxb6 {[%emt 0:00:27]} Bxd3 {[%emt 0:00:30]} 27. Nd5 {[%emt 0:00:00]} Qb7 {[%emt 0:01:30]} 28. Rxd3 {[%emt 0:00:10]} Rb8 {[%emt 0:00:30]} 29. b3 {[%emt 0:00:00]} axb3 {[%emt 0:00:30]} 30. Rxb3 {[%emt 0:00:03]} Qa7 {[%emt 0:00:30]} 31. Rd1 {[%emt 0:01:22]} a5 {[%emt 0:00:30]} 32. a4 {[%emt 0:00:54]} Rc8 {[%emt 0:01:30]} 33. Rdd3 {[%emt 0:01:03]} Qg1+ {[%emt 0:00:30]} 34. Rd1 {[%emt 0:00:29]} Qf2 {[%emt 0:01:30]} 35. Rc3 {[%emt 0:00:17]} Rxc3 $19 {[%emt 0:04:30] and life is good for Black.} (35... Qc5 $4 {[%emt 0:03:30][%mdl 8192]}) 36. Nxc3 {[%emt 0:00:30]} Qc5 {[%emt 0:00:30]} (36... Qb6+ 37. Nb5 Qc5) 37. Nd5 {[%emt 0:00:30]} Qa3 {[%emt 0:00:30]} 38. h4 {[%emt 0:00:30]} Bxh4 {[%emt 0:00:30]} 39. Rd3 {[%emt 0:00:30]} Qxa4 {[%emt 0:00:30]} 40. Rb3 {[%emt 0:00:30]} Qd7 {[%emt 0:00:30]} 41. Be2 {[%emt 0:00:30]} a4 {[%emt 0:00:30]} 42. Rb4 {[%emt 0:00:30]} Qa7 {[%emt 0:00:30]} 43. Bc4 {[%emt 0:00:44]} Qg1+ {[%emt 0:05:30]} 44. Ka2 $19 {[%emt 0:00:23]} Qxg2 {[%emt 0:01:30]} 45. Rb8+ {[%emt 0:00:30]} Kh7 {[%emt 0:00:30]} 46. Ne3 {[%emt 0:00:00]} Qxe4 {[%emt 0:04:30]} 47. Bxf7 {[%emt 0:00:24]} h5 {[%emt 0:00:00]} 48. Bg6+ {[%emt 0:01:41]} Kh6 {[%emt 0:00:00]} 49. Rh8+ {[%emt 0:00:30]} Kg5 {[%emt 0:00:00]} 50. Rxh5+ {[%emt 0:00:20]} Kf6 {[%emt 0:00:00]} 0-1